Workbook

Sheet Input Demand
A1: Demand Charateristics
A2: Parameter | B2: Input Data (full time period) | C2: Input Data (single day) | D2: Input to Model (single day, correction) | E2: Unit
A3: No of days | B3: 22 | C3: 1 | D3: 1
A4: Total Distance | B4: =ROUND((D9/100)*B5,0)*Constraints!B24+ROUND((D10/100)*B5,0)*Constraints!C24+ROUND((D11/100)*B5,0)*Constraints!D24 -> 17523.0 | C4: =B4/B3 -> 796.5 | D4: =Constraints!B26*Constraints!B24+Constraints!C26*Constraints!C24+Constraints!D26*Constraints!D24 -> 807.0 | E4: km
A5: No of Missions | B5: 847 | C5: =B5/B3 -> 39 | D5: =ROUND(D9/100*C5,0)+ROUND(D10/100*C5,0)+ROUND(D11/100*C5,0) -> 38
A6: No of Passengers | B6: 900 | D6: =ROUNDUP(B6/B3,0) -> 41
A7: Concurrency | B7: 34 | D7: =B7 -> 34 | E7: %
A8: Min number of vehicles | D8: 0
A9: Short Trips | D9: 50 | E9: %
A10: Middle Trips | D10: 35 | E10: %
A11: Long Trips | D11: =100-D9-D10 -> 15.0 | E11: %

Sheet Input Cost
A1: Fixed Cost per Vehicle
A3: Currency | B3: Euro
A5: Vehicle Type | B5: Value | C5: Unit | D5: Value | E5: Unit
A6: =A20 -> Self-Drive | D6: =SUM(D10:D14)-D12 -> 11.51 | E6: =CONCATENATE($B$3,"/day") -> Euro/day
A7: =A21 -> Core-Drive | D7: =SUM(D10:D14) -> 59.03 | E7: =CONCATENATE($B$3,"/day") -> Euro/day
A8: Outsourced | D8: 40.00 | E8: Euro/day
A10: Asset | B10: 1998 | C10: =CONCATENATE($B$3,"/year") -> Euro/year | D10: =B10/250 -> 7.99 | E10: Euro/day
A11: Technology | B11: 136 | C11: =CONCATENATE($B$3,"/year") -> Euro/year | D11: =B11/250 -> 0.54 | E11: Euro/day
A12: Labour (core drive) | B12: 11880 | C12: Euro/year | D12: =B12/250 -> 47.52 | E12: Euro/day
A13: Insurance | B13: 680 | C13: Euro/year | D13: =B13/250 -> 2.72 | E13: Euro/day
A14: Other | B14: 63 | C14: Euro/year | D14: =B14/250 -> 0.25 | E14: Euro/day
A18: Variable Costs per Vehicle
A19: Transporation Mode | B19: Value | C19: Unit
A20: Self-Drive | B20: 0.12 | C20: =CONCATENATE($B$3,"/km") -> Euro/km
A21: Core-Drive | B21: 0.12 | C21: =CONCATENATE($B$3,"/km") -> Euro/km
A22: Outsourced | B22: 0 | C22: Euro/km
A23: Taxi | B23: 0.6 | C23: Euro/km | D23: 1.5 | E23: =CONCATENATE($B$3," for Call-out and first") -> Euro for Call-out and first | F23: 1.5 | G23: km and | H23: 15 | I23: % off

Sheet Constraints
A1: Max. Utilization per Vehicle per day
B2: ='Input Cost'!A20 -> Self-Drive | C2: ='Input Cost'!A21 -> Core-Drive | D2: ='Input Cost'!A22 -> Outsourced | E2: Unit | F2: Taxi
A3: Distance travelled | B3: 120 | C3: 120 | D3: 120 | E3: km/day | F3: - | G3: per trip
A4: Max. possible missions | B4: 5 | C4: 5 | D4: 5 | E4: missions per day | F4: - | G4: per trip | H4: Missions per vehicle per day not part of the optimization (just for the plots)
A5: No of Passengers per trip | B5: 4 | C5: 3 | D5: 3 | E5: per trip | F5: 3 | G5: per trip
A6: Effective time (time budget) | B6: 8 | C6: 8 | D6: 8 | E6: hours per day
A11: Trip duration | B11: short trip | C11: middle trip | D11: long trip
A12: ='Input Cost'!A20 -> Self-Drive | B12: 3 | C12: 4 | D12: 8
A13: ='Input Cost'!A21 -> Core-Drive | B13: 1.5 | C13: 2 | D13: 8
A14: ='Input Cost'!A22 -> Outsourced | B14: 1.5 | C14: 2 | D14: 8
A15: ='Input Cost'!A23 -> Taxi | B15: not relevant to the model
A17: Distance factor | B17: short trip | C17: middle trip | D17: long trip
A18: ='Input Cost'!A20 -> Self-Drive | B18: 2 | C18: 2 | D18: 2
A19: ='Input Cost'!A21 -> Core-Drive | B19: 4 | C19: 3 | D19: 2
A20: ='Input Cost'!A22 -> Outsourced | B20: 4 | C20: 3 | D20: 2
A21: ='Input Cost'!A23 -> Taxi | B21: 2 | C21: 2 | D21: 2
A23: Trips | B23: short | C23: middle | D23: long
A24: Avg. distance single leg [km] | B24: 4 | C24: 17 | D24: 85
A25: Bounds [km] | B25: [0-10] | C25: [10-40] | D25: [40…] | E25: only additional information (not for the model)
A26: No. missions | B26: =ROUND('Input Demand'!D9/100*'Input Demand'!D5,0) -> 19 | C26: =ROUND('Input Demand'!D10/100*'Input Demand'!D5,0) -> 13 | D26: =ROUND('Input Demand'!D11/100*'Input Demand'!D5,0) -> 6

Sheet Solver
B2: Excel Solver Sheet
A4: Total Cost (per day) | B4: =B5+B9 -> 408.63 | C4: ='Input Cost'!$B$3 -> Euro
A5: Fix Costs (per day) | B5: =SUM(B6:B8) -> 149.61 | C5: ='Input Cost'!$B$3 -> Euro
A6: ='Input Cost'!A20 -> Self-Drive | B6: =B16*'Input Cost'!D6 -> 149.61 | C6: ='Input Cost'!$B$3 -> Euro
A7: ='Input Cost'!A21 -> Core-Drive | B7: =B17*'Input Cost'!D7 -> 0.00 | C7: ='Input Cost'!$B$3 -> Euro
A8: ='Input Cost'!A22 -> Outsourced | B8: =B18*'Input Cost'!D8 -> 0.00 | C8: ='Input Cost'!$B$3 -> Euro
A9: Variable Costs (per day) | B9: =SUM(B10:B13) -> 259.02 | C9: ='Input Cost'!$B$3 -> Euro
A10: ='Input Cost'!A20 -> Self-Drive | B10: =E21*'Input Cost'!B20 -> 176.40 | C10: ='Input Cost'!$B$3 -> Euro
A11: ='Input Cost'!A21 -> Core-Drive | B11: =E22*'Input Cost'!B21 -> 0.00 | C11: ='Input Cost'!$B$3 -> Euro
A12: ='Input Cost'!A22 -> Outsourced | B12: =E23*'Input Cost'!B22 -> 0.00 | C12: ='Input Cost'!$B$3 -> Euro
A13: ='Input Cost'!A23 -> Taxi | B13: =((E24-'Input Cost'!F23*SUM(B24:D24))*'Input Cost'!B23+SUM(B24:D24)*'Input Cost'!D23)*(1-'Input Cost'!H23/100) -> 82.62 | C13: ='Input Cost'!$B$3 -> Euro
A15: Fleet Composition
A16: ='Input Cost'!A20 -> Self-Drive | B16: 13 | C16: vehicles
A17: ='Input Cost'!A21 -> Core-Drive | B17: 0 | C17: vehicles
A18: ='Input Cost'!A22 -> Outsourced | B18: 0 | C18: vehicles
A19: Taxi Trips | B19: =SUM(B24:D24) -> 18 | C19: trips
A20: Operational Mix (per day) | B20: short missions | C20: middle missions | D20: long missions | E20: total km | F20: no_missions | G20: no_vehicles | H20: max.
A21: ='Input Cost'!A20 -> Self-Drive | B21: 1 | C21: 13 | D21: 6 | E21: =SUMPRODUCT(B21:D21,DistanceFactorSelfDrive,DistancesTripTypes) -> 1470.00 | F21: =SUM(B21:D21) -> 20.00 | G21: =B16 -> 13.00 | H21: =MAX(F21:G21) -> 20.00
A22: ='Input Cost'!A21 -> Core-Drive | B22: 0 | C22: 0 | D22: 0 | E22: =SUMPRODUCT(B22:D22,DistanceFactorCoreDrive,DistancesTripTypes) -> 0.00 | F22: =SUM(B22:D22) -> 0.00 | G22: =B17 -> 0.00 | H22: =MAX(F22:G22) -> 0.00
A23: ='Input Cost'!A22 -> Outsourced | B23: 0 | C23: 0 | D23: 0 | E23: =SUMPRODUCT(B23:D23,DistanceFactorOutsourced,DistancesTripTypes) -> 0.00 | F23: =SUM(B23:D23) -> 0.00 | G23: =B18 -> 0.00 | H23: =MAX(F23:G23) -> 0.00
A24: ='Input Cost'!A23 -> Taxi | B24: 18 | C24: 0 | D24: 0 | E24: =SUMPRODUCT(B24:D24,DistanceFactorTaxi,DistancesTripTypes) -> 144.00
C25: total no. of missions: | D25: =SUM(B21:D24) -> 38
A26: Constraints | B26: Max. possible with current solution | D26: required
A27: Missions covered short | B27: =SUM(B21:B24) -> 19 | C27: = | D27: =Constraints!B26 -> 19
A28: Missions covered middle | B28: =SUM(C21:C24) -> 13 | C28: = | D28: =Constraints!C26 -> 13
A29: Missions covered long | B29: =SUM(D21:D24) -> 6 | C29: = | D29: =Constraints!D26 -> 6
A30: No concurrent trips | B30: =SUM(B16:B18)+SUM(B24:D24) -> 31 | C30: >= | D30: =ROUNDUP('Input Demand'!D7/100*'Input Demand'!D5,0) -> 13
A31: Min number of vehicles (safety constraint) | B31: =SUM(B16:B17) -> 13 | C31: >= | D31: ='Input Demand'!D8 -> 0
A32: ='Input Cost'!A20 -> Self-Drive | B32: =B16*Constraints!B3 -> 1560.00 | C32: >= | D32: =E21 -> 1470.00 | E32: Distance Constraints
A33: ='Input Cost'!A21 -> Core-Drive | B33: =B17*Constraints!C3 -> 0.00 | C33: >= | D33: =E22 -> 0.00
A34: ='Input Cost'!A22 -> Outsourced | B34: =B18*Constraints!D3 -> 0.00 | C34: >= | D34: =E23 -> 0.00
A35: ='Input Cost'!A20 -> Self-Drive | B35: =B16*Constraints!B6 -> 104.00 | C35: >= | D35: =SUMPRODUCT(B21:D21,Constraints!B12:D12) -> 103.00 | E35: Time Constraints
A36: ='Input Cost'!A21 -> Core-Drive | B36: =B17*Constraints!C6 -> 0.00 | C36: >= | D36: =SUMPRODUCT(B22:D22,Constraints!B13:D13) -> 0.00
A37: ='Input Cost'!A22 -> Outsourced | B37: =B18*Constraints!D6 -> 0.00 | C37: >= | D37: =SUMPRODUCT(B23:D23,Constraints!B14:D14) -> 0.00
A38: Passengers self-drive | B38: =Constraints!B5*SUM(B21:D21) -> 80 | C38: >= | D38: ='Input Demand'!$D$6/'Input Demand'!$D$5*SUM(B21:D21) -> 22
A39: Passengers core-drive | B39: =Constraints!C5*SUM(B22:D22) -> 0 | C39: >= | D39: ='Input Demand'!$D$6/'Input Demand'!$D$5*SUM(B22:D22) -> 0
A40: Passengers outsourced | B40: =Constraints!D5*SUM(B23:D23) -> 0 | C40: >= | D40: ='Input Demand'!$D$6/'Input Demand'!$D$5*SUM(B23:D23) -> 0
A41: Passengers Taxi | B41: =Constraints!F5*SUM(B24:D24) -> 54 | C41: >= | D41: ='Input Demand'!$D$6/'Input Demand'!$D$5*SUM(B24:D24) -> 19 | G41: M

Sheet Dashboard
B2: Summary: Fleet Size and Composition
C5: Cost per km single trip | E5: Cost per km | J5: Cost per km single trip | L5: Cost per km
C6: Utilization | D6: km | E6: ='Input Cost'!A20 -> Self-Drive | F6: ='Input Cost'!A21 -> Core-Drive | G6: ='Input Cost'!A22 -> Outsourced | H6: ='Input Cost'!A23 -> Taxi | J6: Utilization | K6: km | L6: ='Input Cost'!A20 -> Self-Drive | M6: ='Input Cost'!A21 -> Core-Drive | N6: ='Input Cost'!A22 -> Outsourced | O6: ='Input Cost'!A23 -> Taxi
C7: 0.01 | D7: =Constraints!$C$3*C7 -> 1.2 | E7: =('Input Cost'!$D$6+'Input Cost'!$B$20*D7)/D7 -> 9.710286806 | F7: =('Input Cost'!$D$7+'Input Cost'!$B$21*D7)/D7 -> 49.31028681 | G7: =('Input Cost'!$D$8+'Input Cost'!$B$22*D7)/D7 -> 33.33 | H7: =IF(D7<'Input Cost'!F23,'Input Cost'!D23,((('Input Cost'!$B$23*(D7-'Input Cost'!F23)+'Input Cost'!$D$23)/D7)*(1-'Input Cost'!$H$23/100))) -> 1.500 | J7: 0.01 | K7: =Constraints!$C$3*J7 -> 1.2 | L7: =('Input Cost'!$D$6/Constraints!$B$4+'Input Cost'!$B$20*K7)/K7 -> 2.038057361 | M7: =('Input Cost'!$D$7/Constraints!$C$4+'Input Cost'!$B$21*K7)/K7 -> 9.958057361 | N7: =('Input Cost'!$D$8/Constraints!$D$4+'Input Cost'!$B$22*K7)/K7 -> 6.67 | O7: =IF(K7<'Input Cost'!F23,'Input Cost'!D23,((('Input Cost'!$B$23*(K7-'Input Cost'!F23)+'Input Cost'!$D$23)/K7)*(1-'Input Cost'!$H$23/100))) -> 1.500
C8: 0.02 | D8: =Constraints!$C$3*C8 -> 2.4 | E8: =('Input Cost'!$D$6+'Input Cost'!$B$20*D8)/D8 -> 4.915143403 | F8: =('Input Cost'!$D$7+'Input Cost'!$B$21*D8)/D8 -> 24.7151434 | G8: =('Input Cost'!$D$8+'Input Cost'!$B$22*D8)/D8 -> 16.67 | H8: =IF(D8<'Input Cost'!F24,'Input Cost'!D24,((('Input Cost'!$B$23*(D8-'Input Cost'!F24)+'Input Cost'!$D$23)/D8)*(1-'Input Cost'!$H$23/100))) -> 1.041 | J8: 0.02 | K8: =Constraints!$C$3*J8 -> 2.4 | L8: =('Input Cost'!$D$6/Constraints!$B$4+'Input Cost'!$B$20*K8)/K8 -> 1.079028681 | M8: =('Input Cost'!$D$7/Constraints!$C$4+'Input Cost'!$B$21*K8)/K8 -> 5.039028681 | N8: =('Input Cost'!$D$8/Constraints!$D$4+'Input Cost'!$B$22*K8)/K8 -> 3.33 | O8: =IF(K8<'Input Cost'!F24,'Input Cost'!D24,((('Input Cost'!$B$23*(K8-'Input Cost'!F24)+'Input Cost'!$D$23)/K8)*(1-'Input Cost'!$H$23/100))) -> 1.041
C9: 0.05 | D9: =Constraints!$C$3*C9 -> 6 | E9: =('Input Cost'!$D$6+'Input Cost'!$B$20*D9)/D9 -> 2.038057361 | F9: =('Input Cost'!$D$7+'Input Cost'!$B$21*D9)/D9 -> 9.958057361 | G9: =('Input Cost'!$D$8+'Input Cost'!$B$22*D9)/D9 -> 6.67 | H9: =IF(D9<'Input Cost'!F25,'Input Cost'!D25,((('Input Cost'!$B$23*(D9-'Input Cost'!F25)+'Input Cost'!$D$23)/D9)*(1-'Input Cost'!$H$23/100))) -> 0.723 | J9: 0.05 | K9: =Constraints!$C$3*J9 -> 6 | L9: =('Input Cost'!$D$6/Constraints!$B$4+'Input Cost'!$B$20*K9)/K9 -> 0.5036114722 | M9: =('Input Cost'!$D$7/Constraints!$C$4+'Input Cost'!$B$21*K9)/K9 -> 2.087611472 | N9: =('Input Cost'!$D$8/Constraints!$D$4+'Input Cost'!$B$22*K9)/K9 -> 1.33 | O9: =IF(K9<'Input Cost'!F25,'Input Cost'!D25,((('Input Cost'!$B$23*(K9-'Input Cost'!F25)+'Input Cost'!$D$23)/K9)*(1-'Input Cost'!$H$23/100))) -> 0.723
C10: 0.1 | D10: =Constraints!$C$3*C10 -> 12 | E10: =('Input Cost'!$D$6+'Input Cost'!$B$20*D10)/D10 -> 1.079028681 | F10: =('Input Cost'!$D$7+'Input Cost'!$B$21*D10)/D10 -> 5.039028681 | G10: =('Input Cost'!$D$8+'Input Cost'!$B$22*D10)/D10 -> 3.33 | H10: =IF(D10<'Input Cost'!F26,'Input Cost'!D26,((('Input Cost'!$B$23*(D10-'Input Cost'!F26)+'Input Cost'!$D$23)/D10)*(1-'Input Cost'!$H$23/100))) -> 0.616 | J10: 0.1 | K10: =Constraints!$C$3*J10 -> 12 | L10: =('Input Cost'!$D$6/Constraints!$B$4+'Input Cost'!$B$20*K10)/K10 -> 0.3118057361 | M10: =('Input Cost'!$D$7/Constraints!$C$4+'Input Cost'!$B$21*K10)/K10 -> 1.103805736 | N10: =('Input Cost'!$D$8/Constraints!$D$4+'Input Cost'!$B$22*K10)/K10 -> 0.67 | O10: =IF(K10<'Input Cost'!F26,'Input Cost'!D26,((('Input Cost'!$B$23*(K10-'Input Cost'!F26)+'Input Cost'!$D$23)/K10)*(1-'Input Cost'!$H$23/100))) -> 0.616
A11: Cost Analysis | C11: 0.2 | D11: =Constraints!$C$3*C11 -> 24 | E11: =('Input Cost'!$D$6+'Input Cost'!$B$20*D11)/D11 -> 0.5995143403 | F11: =('Input Cost'!$D$7+'Input Cost'!$B$21*D11)/D11 -> 2.57951434 | G11: =('Input Cost'!$D$8+'Input Cost'!$B$22*D11)/D11 -> 1.67 | H11: =IF(D11<'Input Cost'!F27,'Input Cost'!D27,((('Input Cost'!$B$23*(D11-'Input Cost'!F27)+'Input Cost'!$D$23)/D11)*(1-'Input Cost'!$H$23/100))) -> 0.563 | J11: 0.2 | K11: =Constraints!$C$3*J11 -> 24 | L11: =('Input Cost'!$D$6/Constraints!$B$4+'Input Cost'!$B$20*K11)/K11 -> 0.2159028681 | M11: =('Input Cost'!$D$7/Constraints!$C$4+'Input Cost'!$B$21*K11)/K11 -> 0.6119028681 | N11: =('Input Cost'!$D$8/Constraints!$D$4+'Input Cost'!$B$22*K11)/K11 -> 0.33 | O11: =IF(K11<'Input Cost'!F27,'Input Cost'!D27,((('Input Cost'!$B$23*(K11-'Input Cost'!F27)+'Input Cost'!$D$23)/K11)*(1-'Input Cost'!$H$23/100))) -> 0.563
C12: 0.3 | D12: =Constraints!$C$3*C12 -> 36 | E12: =('Input Cost'!$D$6+'Input Cost'!$B$20*D12)/D12 -> 0.4396762269 | F12: =('Input Cost'!$D$7+'Input Cost'!$B$21*D12)/D12 -> 1.759676227 | G12: =('Input Cost'!$D$8+'Input Cost'!$B$22*D12)/D12 -> 1.11 | H12: =IF(D12<'Input Cost'!F28,'Input Cost'!D28,((('Input Cost'!$B$23*(D12-'Input Cost'!F28)+'Input Cost'!$D$23)/D12)*(1-'Input Cost'!$H$23/100))) -> 0.545 | J12: 0.3 | K12: =Constraints!$C$3*J12 -> 36 | L12: =('Input Cost'!$D$6/Constraints!$B$4+'Input Cost'!$B$20*K12)/K12 -> 0.1839352454 | M12: =('Input Cost'!$D$7/Constraints!$C$4+'Input Cost'!$B$21*K12)/K12 -> 0.4479352454 | N12: =('Input Cost'!$D$8/Constraints!$D$4+'Input Cost'!$B$22*K12)/K12 -> 0.22 | O12: =IF(K12<'Input Cost'!F28,'Input Cost'!D28,((('Input Cost'!$B$23*(K12-'Input Cost'!F28)+'Input Cost'!$D$23)/K12)*(1-'Input Cost'!$H$23/100))) -> 0.545
C13: 0.4 | D13: =Constraints!$C$3*C13 -> 48 | E13: =('Input Cost'!$D$6+'Input Cost'!$B$20*D13)/D13 -> 0.3597571701 | F13: =('Input Cost'!$D$7+'Input Cost'!$B$21*D13)/D13 -> 1.34975717 | G13: =('Input Cost'!$D$8+'Input Cost'!$B$22*D13)/D13 -> 0.83 | H13: =IF(D13<'Input Cost'!F29,'Input Cost'!D29,((('Input Cost'!$B$23*(D13-'Input Cost'!F29)+'Input Cost'!$D$23)/D13)*(1-'Input Cost'!$H$23/100))) -> 0.537 | J13: 0.4 | K13: =Constraints!$C$3*J13 -> 48 | L13: =('Input Cost'!$D$6/Constraints!$B$4+'Input Cost'!$B$20*K13)/K13 -> 0.167951434 | M13: =('Input Cost'!$D$7/Constraints!$C$4+'Input Cost'!$B$21*K13)/K13 -> 0.365951434 | N13: =('Input Cost'!$D$8/Constraints!$D$4+'Input Cost'!$B$22*K13)/K13 -> 0.17 | O13: =IF(K13<'Input Cost'!F29,'Input Cost'!D29,((('Input Cost'!$B$23*(K13-'Input Cost'!F29)+'Input Cost'!$D$23)/K13)*(1-'Input Cost'!$H$23/100))) -> 0.537
C14: 0.5 | D14: =Constraints!$C$3*C14 -> 60 | E14: =('Input Cost'!$D$6+'Input Cost'!$B$20*D14)/D14 -> 0.3118057361 | F14: =('Input Cost'!$D$7+'Input Cost'!$B$21*D14)/D14 -> 1.103805736 | G14: =('Input Cost'!$D$8+'Input Cost'!$B$22*D14)/D14 -> 0.67 | H14: =IF(D14<'Input Cost'!F30,'Input Cost'!D30,((('Input Cost'!$B$23*(D14-'Input Cost'!F30)+'Input Cost'!$D$23)/D14)*(1-'Input Cost'!$H$23/100))) -> 0.531 | J14: 0.5 | K14: =Constraints!$C$3*J14 -> 60 | L14: =('Input Cost'!$D$6/Constraints!$B$4+'Input Cost'!$B$20*K14)/K14 -> 0.1583611472 | M14: =('Input Cost'!$D$7/Constraints!$C$4+'Input Cost'!$B$21*K14)/K14 -> 0.3167611472 | N14: =('Input Cost'!$D$8/Constraints!$D$4+'Input Cost'!$B$22*K14)/K14 -> 0.13 | O14: =IF(K14<'Input Cost'!F30,'Input Cost'!D30,((('Input Cost'!$B$23*(K14-'Input Cost'!F30)+'Input Cost'!$D$23)/K14)*(1-'Input Cost'!$H$23/100))) -> 0.531
C15: 0.6 | D15: =Constraints!$C$3*C15 -> 72 | E15: =('Input Cost'!$D$6+'Input Cost'!$B$20*D15)/D15 -> 0.2798381134 | F15: =('Input Cost'!$D$7+'Input Cost'!$B$21*D15)/D15 -> 0.9398381134 | G15: =('Input Cost'!$D$8+'Input Cost'!$B$22*D15)/D15 -> 0.56 | H15: =IF(D15<'Input Cost'!F31,'Input Cost'!D31,((('Input Cost'!$B$23*(D15-'Input Cost'!F31)+'Input Cost'!$D$23)/D15)*(1-'Input Cost'!$H$23/100))) -> 0.528 | J15: 0.6 | K15: =Constraints!$C$3*J15 -> 72 | L15: =('Input Cost'!$D$6/Constraints!$B$4+'Input Cost'!$B$20*K15)/K15 -> 0.1519676227 | M15: =('Input Cost'!$D$7/Constraints!$C$4+'Input Cost'!$B$21*K15)/K15 -> 0.2839676227 | N15: =('Input Cost'!$D$8/Constraints!$D$4+'Input Cost'!$B$22*K15)/K15 -> 0.11 | O15: =IF(K15<'Input Cost'!F31,'Input Cost'!D31,((('Input Cost'!$B$23*(K15-'Input Cost'!F31)+'Input Cost'!$D$23)/K15)*(1-'Input Cost'!$H$23/100))) -> 0.528
C16: 0.7 | D16: =Constraints!$C$3*C16 -> 84 | E16: =('Input Cost'!$D$6+'Input Cost'!$B$20*D16)/D16 -> 0.2570040972 | F16: =('Input Cost'!$D$7+'Input Cost'!$B$21*D16)/D16 -> 0.8227183829 | G16: =('Input Cost'!$D$8+'Input Cost'!$B$22*D16)/D16 -> 0.48 | H16: =IF(D16<'Input Cost'!F32,'Input Cost'!D32,((('Input Cost'!$B$23*(D16-'Input Cost'!F32)+'Input Cost'!$D$23)/D16)*(1-'Input Cost'!$H$23/100))) -> 0.525 | J16: 0.7 | K16: =Constraints!$C$3*J16 -> 84 | L16: =('Input Cost'!$D$6/Constraints!$B$4+'Input Cost'!$B$20*K16)/K16 -> 0.1474008194 | M16: =('Input Cost'!$D$7/Constraints!$C$4+'Input Cost'!$B$21*K16)/K16 -> 0.2605436766 | N16: =('Input Cost'!$D$8/Constraints!$D$4+'Input Cost'!$B$22*K16)/K16 -> 0.10 | O16: =IF(K16<'Input Cost'!F32,'Input Cost'!D32,((('Input Cost'!$B$23*(K16-'Input Cost'!F32)+'Input Cost'!$D$23)/K16)*(1-'Input Cost'!$H$23/100))) -> 0.525
C17: 0.8 | D17: =Constraints!$C$3*C17 -> 96 | E17: =('Input Cost'!$D$6+'Input Cost'!$B$20*D17)/D17 -> 0.2398785851 | F17: =('Input Cost'!$D$7+'Input Cost'!$B$21*D17)/D17 -> 0.7348785851 | G17: =('Input Cost'!$D$8+'Input Cost'!$B$22*D17)/D17 -> 0.42 | H17: =IF(D17<'Input Cost'!F33,'Input Cost'!D33,((('Input Cost'!$B$23*(D17-'Input Cost'!F33)+'Input Cost'!$D$23)/D17)*(1-'Input Cost'!$H$23/100))) -> 0.523 | J17: 0.8 | K17: =Constraints!$C$3*J17 -> 96 | L17: =('Input Cost'!$D$6/Constraints!$B$4+'Input Cost'!$B$20*K17)/K17 -> 0.143975717 | M17: =('Input Cost'!$D$7/Constraints!$C$4+'Input Cost'!$B$21*K17)/K17 -> 0.242975717 | N17: =('Input Cost'!$D$8/Constraints!$D$4+'Input Cost'!$B$22*K17)/K17 -> 0.08 | O17: =IF(K17<'Input Cost'!F33,'Input Cost'!D33,((('Input Cost'!$B$23*(K17-'Input Cost'!F33)+'Input Cost'!$D$23)/K17)*(1-'Input Cost'!$H$23/100))) -> 0.523
C18: 0.9 | D18: =Constraints!$C$3*C18 -> 108 | E18: =('Input Cost'!$D$6+'Input Cost'!$B$20*D18)/D18 -> 0.2265587423 | F18: =('Input Cost'!$D$7+'Input Cost'!$B$21*D18)/D18 -> 0.6665587423 | G18: =('Input Cost'!$D$8+'Input Cost'!$B$22*D18)/D18 -> 0.37 | H18: =IF(D18<'Input Cost'!F34,'Input Cost'!D34,((('Input Cost'!$B$23*(D18-'Input Cost'!F34)+'Input Cost'!$D$23)/D18)*(1-'Input Cost'!$H$23/100))) -> 0.522 | J18: 0.9 | K18: =Constraints!$C$3*J18 -> 108 | L18: =('Input Cost'!$D$6/Constraints!$B$4+'Input Cost'!$B$20*K18)/K18 -> 0.1413117485 | M18: =('Input Cost'!$D$7/Constraints!$C$4+'Input Cost'!$B$21*K18)/K18 -> 0.2293117485 | N18: =('Input Cost'!$D$8/Constraints!$D$4+'Input Cost'!$B$22*K18)/K18 -> 0.07 | O18: =IF(K18<'Input Cost'!F34,'Input Cost'!D34,((('Input Cost'!$B$23*(K18-'Input Cost'!F34)+'Input Cost'!$D$23)/K18)*(1-'Input Cost'!$H$23/100))) -> 0.522
C19: 1 | D19: =Constraints!$C$3*C19 -> 120 | E19: =('Input Cost'!$D$6+'Input Cost'!$B$20*D19)/D19 -> 0.2159028681 | F19: =('Input Cost'!$D$7+'Input Cost'!$B$21*D19)/D19 -> 0.6119028681 | G19: =('Input Cost'!$D$8+'Input Cost'!$B$22*D19)/D19 -> 0.33 | H19: =IF(D19<'Input Cost'!F35,'Input Cost'!D35,((('Input Cost'!$B$23*(D19-'Input Cost'!F35)+'Input Cost'!$D$23)/D19)*(1-'Input Cost'!$H$23/100))) -> 0.521 | J19: 1 | K19: =Constraints!$C$3*J19 -> 120 | L19: =('Input Cost'!$D$6/Constraints!$B$4+'Input Cost'!$B$20*K19)/K19 -> 0.1391805736 | M19: =('Input Cost'!$D$7/Constraints!$C$4+'Input Cost'!$B$21*K19)/K19 -> 0.2183805736 | N19: =('Input Cost'!$D$8/Constraints!$D$4+'Input Cost'!$B$22*K19)/K19 -> 0.07 | O19: =IF(K19<'Input Cost'!F35,'Input Cost'!D35,((('Input Cost'!$B$23*(K19-'Input Cost'!F35)+'Input Cost'!$D$23)/K19)*(1-'Input Cost'!$H$23/100))) -> 0.521
C21: Cost per Mission | E21: Cost per Mission
E22: Self-Drive | F22: Core Drive | G22: Outsourced | H22: Taxi
B25: Transportation Mode | C25: Fleet | D25: short Missions | E25: middle Missions | F25: long Missions | G25: Missions | H25: Distance
A26: Operational Mix | B26: ='Input Cost'!A20 -> Self-Drive | C26: =Solver!B16 -> 13 | D26: =Solver!B21 -> 1 | E26: =Solver!C21 -> 13 | F26: =Solver!D21 -> 6 | G26: =SUM(D26:F26) -> 20 | H26: =Solver!E21 -> 1470.00
B27: ='Input Cost'!A21 -> Core-Drive | C27: =Solver!B17 -> 0 | D27: =Solver!B22 -> 0 | E27: =Solver!C22 -> 0 | F27: =Solver!D22 -> 0 | G27: =SUM(D27:F27) -> 0 | H27: =Solver!E22 -> 0.00
B28: ='Input Cost'!A22 -> Outsourced | C28: =Solver!B18 -> 0 | D28: =Solver!B23 -> 0 | E28: =Solver!C23 -> 0 | F28: =Solver!D23 -> 0 | G28: =SUM(D28:F28) -> 0 | H28: =Solver!E23 -> 0.00
A29: Trips | B29: ='Input Cost'!A23&" "&A29 -> Taxi Trips | C29: =SUM(D29:F29) -> 18 | D29: =Solver!B24 -> 18 | E29: =Solver!C24 -> 0 | F29: =Solver!D24 -> 0 | G29: =SUM(D29:F29) -> 18 | H29: =Solver!E24 -> 144.00

Sheet Cost Savings Opportunity
A2: Time period for savings plots | B2: 250 | C2: days
A4: Time period | B4: 25 | C4: days
A5: Type | B5: Status quo | E5: Status quo (per day) | F5: Status quo (per plot period) | G5: Min. to meet demand (per day) | H5: Min. to meet demand (per plot period) | I5: Savings potential (plot period) | J5: Savings [%]
A6: Vehicles (Buy - Resale Value) | B6: =12869.3333333333 -> 12869.33 | C6: =CONCATENATE('Input Cost'!$B$3,"/period") -> Euro/period | E6: =B6/$B$4 -> 514.77 | F6: =E6*'Cost Savings Opportunity'!$B$2 -> 128693.33 | G6: =$G$17*'Input Cost'!D10 -> 103.90 | H6: =G6*'Cost Savings Opportunity'!$B$2 -> 25976.17 | I6: =F6-H6 -> 102717.17 | J6: =IF(F6<>0,(F6-H6)/F6*100,0) -> 79.82
A7: Technology | B7: 4549.14 | C7: =CONCATENATE('Input Cost'!$B$3,"/period") -> Euro/period | E7: =B7/$B$4 -> 181.97 | F7: =E7*'Cost Savings Opportunity'!$B$2 -> 45491.37 | G7: =G17*'Input Cost'!D11 -> 7.06 | H7: =G7*'Cost Savings Opportunity'!$B$2 -> 1764.61 | I7: =F7-H7 -> 43726.75 | J7: =IF(F7<>0,(F7-H7)/F7*100,0) -> 96.12
A8: Salary (core drive) | B8: 15695.00 | C8: =CONCATENATE('Input Cost'!$B$3,"/period") -> Euro/period | E8: 627.80 | F8: =E8*'Cost Savings Opportunity'!$B$2 -> 156950.00 | G8: =G16*'Input Cost'!D12 -> 0.00 | H8: =G8*'Cost Savings Opportunity'!$B$2 -> 0.00 | I8: 156950.00 | J8: 100.00
A9: Insurance | B9: 3358.68 | C9: =CONCATENATE('Input Cost'!$B$3,"/period") -> Euro/period | E9: 134.35 | F9: =E9*'Cost Savings Opportunity'!$B$2 -> 33586.78 | G9: =G17*'Input Cost'!D13 -> 35.36 | H9: =G9*'Cost Savings Opportunity'!$B$2 -> 8840.00 | I9: 24746.78 | J9: 73.68
A10: Other | B10: 331.69 | C10: =CONCATENATE('Input Cost'!$B$3,"/period") -> Euro/period | E10: 13.27 | F10: =E10*'Cost Savings Opportunity'!$B$2 -> 3316.93 | G10: =G17*'Input Cost'!D14 -> 3.29 | H10: =G10*'Cost Savings Opportunity'!$B$2 -> 821.34 | I10: 2495.59 | J10: 75.24
A12: Cost for Outsourcing | B12: 0.00 | C12: =CONCATENATE('Input Cost'!$B$3,"/period") -> Euro/period | E12: 0.00 | F12: =E12*'Cost Savings Opportunity'!$B$2 -> 0.00 | G12: =Solver!B8+Solver!B12 -> 0.00 | H12: =G12*'Cost Savings Opportunity'!$B$2 -> 0.00 | I12: 0.00 | J12: 0.00
A13: Cost for Taxi Services | B13: 11108.15 | C13: =CONCATENATE('Input Cost'!$B$3,"/period") -> Euro/period | E13: 444.33 | F13: =E13*'Cost Savings Opportunity'!$B$2 -> 111081.48 | G13: =Solver!B13 -> 82.62 | H13: =G13*'Cost Savings Opportunity'!$B$2 -> 20655.00 | I13: 90426.48 | J13: 81.41
A14: Cost for Fuel + M&R | B14: =1418.6825+1319.31 -> 2737.99 | C14: =CONCATENATE('Input Cost'!$B$3,"/period") -> Euro/period | E14: 109.52 | F14: =E14*'Cost Savings Opportunity'!$B$2 -> 27379.93 | G14: =Solver!B10+Solver!B11 -> 176.40 | H14: =G14*'Cost Savings Opportunity'!$B$2 -> 44100.00 | I14: -16720.08 | J14: -61.07
A16: No drivers | B16: 20 | E16: =B16 -> 20 | F16: =E16 -> 20 | G16: =Solver!B17 -> 0 | H16: =G16 -> 0 | I16: 20 | J16: 100
A17: No vehicles | B17: 57 | E17: =B17 -> 57 | F17: =E17 -> 57 | G17: =Solver!B16+Solver!B17 -> 13 | H17: =G17 -> 13 | I17: 44 | J17: 77.19298246
A24: Type | B24: =F5 -> Status quo (per plot period) | C24: =H5 -> Min. to meet demand (per plot period)
A25: Vehicles (Buy - Resale Value) | B25: =F6 -> 128693.33 | C25: =H6 -> 25976.17
A26: Technology | B26: =F7 -> 45491.37 | C26: =H7 -> 1764.61
A27: Salary (core drive) | B27: 156950.00 | C27: 0.00
A28: Insurance | B28: 33586.78 | C28: 8840.00
A29: Other | B29: 3316.93 | C29: 821.34
A31: ='Input Cost'!A22 -> Outsourced | B31: 0.00 | C31: 0.00
A32: ='Input Cost'!A23 -> Taxi | B32: 111081.48 | C32: 20655.00
A33: Fuel + M&R | B33: 27379.93 | C33: 44100.00

Sheet Triangle Analysis
C2: Triangle Analysis
C4: Distance | D4: variable cost | E4: Calculation of number of vehicles | I4: number of vehicles | J4: number of drivers | K4: fix cost | L4: total cost (per day) | M4: total cost (per plot period)
B5: Extremes | E5: hours | F5: distance | G5: concurrency | H5: min no. Vehicles
A6: 100% | B6: ='Input Cost'!A20 -> Self-Drive | C6: =SUMPRODUCT(Constraints!B26:D26,DistanceFactorSelfDrive,DistancesTripTypes) -> 1614.00 | D6: =C6*'Input Cost'!B20 -> 193.68 | E6: =ROUNDUP((SUMPRODUCT(Constraints!B26:D26,Constraints!B12:D12))/Constraints!B6,0) -> 20 | F6: =ROUNDUP((C6/Constraints!B3),0) -> 14 | G6: =Solver!$D$30 -> 13 | H6: =Solver!$D$31 -> 0 | I6: =MAX(E6:H6) -> 20 | J6: 0 | K6: =I6*'Input Cost'!D6 -> 230.17 | L6: =D6+K6 -> 423.85 | M6: =L6*'Cost Savings Opportunity'!$B$2 -> 105961.72
A7: 100% | B7: ='Input Cost'!A21 -> Core-Drive | C7: =SUMPRODUCT(Constraints!B26:D26,DistanceFactorCoreDrive,DistancesTripTypes) -> 1987.00 | D7: =C7*'Input Cost'!B21 -> 238.44 | E7: =ROUNDUP((SUMPRODUCT(Constraints!B26:D26,Constraints!B13:D13))/Constraints!C6,0) -> 13 | F7: =ROUNDUP((C7/Constraints!C3),0) -> 17 | G7: =Solver!$D$30 -> 13 | H7: =Solver!$D$31 -> 0 | I7: =MAX(E7:H7) -> 17 | J7: =I7 -> 17 | K7: =I7*'Input Cost'!D7 -> 1003.48 | L7: 1241.92 | M7: =L7*'Cost Savings Opportunity'!$B$2 -> 310480.46
A8: 100% | B8: ='Input Cost'!A22 -> Outsourced | C8: =SUMPRODUCT(Constraints!B26:D26,DistanceFactorOutsourced,DistancesTripTypes) -> 1987.00 | D8: =C8*'Input Cost'!B22 -> 0 | E8: =ROUNDUP((SUMPRODUCT(Constraints!B26:D26,Constraints!B14:D14))/Constraints!D6,0) -> 13 | F8: =ROUNDUP((C8/Constraints!D3),0) -> 17 | G8: =Solver!$D$30 -> 13 | H8: =Solver!$D$31 -> 0 | I8: =MAX(E8:H8) -> 17 | J8: 0 | K8: =I8*'Input Cost'!D8 -> 680.00 | L8: 680.00 | M8: =L8*'Cost Savings Opportunity'!$B$2 -> 170000.00
B9: ='Input Cost'!A23 -> Taxi | C9: =SUMPRODUCT(Constraints!B26:D26,DistanceFactorTaxi,DistancesTripTypes) -> 1614.00 | D9: =((C9-'Input Cost'!F23*'Input Demand'!D5)*'Input Cost'!B23+'Input Cost'!D23*'Input Demand'!D5)*(1-'Input Cost'!H23/100) -> 842.52 | E9: - | F9: - | G9: - | H9: - | I9: - | J9: - | K9: 0.00 | L9: =D9+K9 -> 842.52 | M9: =L9*'Cost Savings Opportunity'!$B$2 -> 210630.00
B10: Status quo | I10: ='Cost Savings Opportunity'!B17 -> 57 | J10: ='Cost Savings Opportunity'!B16 -> 20 | L10: =SUM('Cost Savings Opportunity'!B6:B14)/'Cost Savings Opportunity'!B4 -> 2026.00 | M10: =L10*'Cost Savings Opportunity'!$B$2 -> 506499.80
B11: Optimal Solution | C11: =SUM(Solver!E21:E24) -> 1614.00 | D11: =Solver!B9 -> 259.02 | I11: =Solver!B16+Solver!B17 -> 13 | J11: =Solver!B17 -> 0 | K11: =Solver!B5 -> 149.61 | L11: 408.63 | M11: =L11*'Cost Savings Opportunity'!$B$2 -> 102157.12
